bitfinex-derivatives/quotes_BNBF0:USTF0_20250309
["timestamp","ask_amount","ask_price","bid_price","bid_amount"]
[1741559827569,0.278,554.38,554.11,0.29804896]
[1741559827874,0.278,554.38,554.12,0.29804896]
[1741559828068,0.278,554.38,554.09,0.36095219]
[1741559828069,0.278,554.38,554.1,0.29804896]
[1741559828270,0.278,554.38,554.11,0.29804896]
[1741559828466,0.278,554.38,554.1,0.29804896]
[1741559831668,0.278,554.38,554.09,0.36095219]
[1741559832171,0.647,554.4,554.09,0.36095219]
[1741559833773,1.40441469,554.39,554.09,0.36095219]
[1741559834566,0.647,554.4,554.09,0.36095219]
[1741559835471,2.89321519,554.39,554.09,0.36095219]
[1741559835674,2.89321519,554.38,553.57,1.3329422]
[1741559835873,2.89321519,554.37,553.59,0.3612782]
[1741559836077,2.89321804,554.36,553.6,0.29819587]
[1741559836277,4.29734439,554.35,553.61,0.65946102]
[1741559836477,4.29734439,554.35,553.57,1.3329422]
[1741559836478,1.08926566,554.34,553.62,0.65945449]
[1741559836667,2.89299646,554.33,553.63,0.65944796]
[1741559836868,2.89299646,554.32,553.64,0.65944144]
[1741559837073,2.89299646,554.31,553.65,0.36123904]
[1741559837276,2.89299646,554.3,553.65,0.36123904]
[1741559837475,2.89299646,554.29,553.65,0.36123904]
[1741559837672,2.89256461,554.28,553.65,0.36123904]
[1741559837874,2.89256461,554.27,553.65,0.36123904]
[1741559838074,1.40418112,554.29,553.65,0.36123904]
[1741559838075,2.89256461,554.26,553.65,0.36123904]
[1741559838276,2.89256461,554.25,553.65,0.36123904]
[1741559838474,1.40418112,554.26,553.65,0.36123904]
[1741559838679,1.40418112,554.24,553.66,0.29827391]
[1741559839275,1.40418112,554.23,553.67,0.29826615]
[1741559839577,1.40418112,554.22,553.68,0.29826615]
[1741559839771,1.40418112,554.22,553.69,0.29826615]
[1741559839971,1.40418112,554.22,553.66,0.29826615]
[1741559840271,1.40418112,554.22,553.65,0.36123904]
[1741559840272,1.71831725,554.21,553.67,0.29826615]
[1741559840569,0.31413613,554.21,553.68,0.29826615]
[1741559840775,0.31413613,554.21,553.65,0.36123904]
[1741559840776,0.31413613,554.21,553.66,0.29826615]
[1741559840973,0.31413613,554.21,553.67,0.29826615]
[1741559841178,0.31413613,554.21,553.66,0.29826615]
[1741559841877,1.40137304,554.2,553.66,0.29826615]
[1741559842472,2.89147172,554.28,553.66,0.29826615]
[1741559842676,2.89147172,554.27,553.66,0.29826615]
[1741559842977,2.89129696,554.26,553.66,0.29826615]
[1741559843172,3.64410288,554.27,553.66,0.29826615]
[1741559843572,1.40095826,554.27,553.66,0.29826615]
[1741559843771,1.40095826,554.26,553.66,0.29826615]
[1741559843971,1.7150873,554.26,553.66,0.29826615]
[1741559844170,1.40095826,554.25,553.66,0.29826615]
[1741559844572,1.40095826,554.24,553.66,0.29826615]
[1741559844971,1.40095826,554.23,553.66,0.29826615]
[1741559845377,0.31412478,554.22,553.66,0.29826615]
[1741559845977,0.31412478,554.22,553.66,0.65949867]
[1741559846176,0.31412478,554.22,553.67,0.29826615]
[1741559846371,0.31412478,554.22,553.68,0.36121947]
[1741559846879,0.31412478,554.22,553.69,0.29826615]
[1741559847678,1.40021818,554.39,553.69,0.29826615]
[1741559847879,0.31402841,554.32,553.69,0.29826615]
[1741559848179,0.647,554.4,553.69,0.29826615]
[1741559849280,0.3140525,554.39,553.69,0.29826615]
[1741559849678,0.3140525,554.39,553.7,0.36120642]
[1741559849876,1.40008073,554.38,553.71,0.29826615]
[1741559850081,1.40008073,554.38,553.72,0.36119338]
[1741559850481,1.40008073,554.38,553.73,0.29826615]
[1741559850776,0.3140525,554.39,553.74,0.36118033]
[1741559850981,0.3140525,554.39,553.75,0.29826615]
[1741559851173,0.647,554.4,553.76,0.36116729]
[1741559851378,0.647,554.4,553.77,0.29826615]
[1741559851580,0.647,554.4,553.78,0.36115424]
[1741559851782,0.647,554.4,553.79,0.29826615]
[1741559851982,0.647,554.4,553.8,0.3611412]
[1741559852282,0.31403833,554.39,553.81,0.29826615]
[1741559852483,0.31403833,554.39,553.81,0.65940083]
[1741559852679,0.31403833,554.39,553.82,0.29826615]
[1741559853989,0.31403833,554.39,553.83,0.36112164]
[1741559854185,0.31403833,554.39,553.84,0.29826615]
[1741559854387,0.31403833,554.39,553.85,0.3611086]
[1741559854583,0.31403833,554.39,553.86,0.29826615]
[1741559855482,0.31403833,554.39,553.87,0.36109556]
[1741559855684,0.31403833,554.39,553.88,0.29826615]
[1741559856085,0.31403833,554.39,553.89,0.36108252]
[1741559856283,0.31403833,554.39,553.9,0.29826615]
[1741559856588,0.31403833,554.39,553.91,0.36106948]
[1741559856888,0.31403833,554.39,553.92,0.29826615]
[1741559857082,2.89002074,554.65,553.93,0.36105645]
[1741559857285,0.31392643,554.41,553.94,0.29826615]
[1741559857486,0.31392643,554.41,553.95,0.36104341]
[1741559857680,0.31392643,554.41,553.96,0.29826615]
[1741559857881,0.31392643,554.41,553.97,0.36103038]
[1741559858080,0.31392643,554.41,553.98,0.29826615]
[1741559858482,0.31392643,554.41,553.99,0.36101734]
[1741559858686,0.31392643,554.41,554.0,0.29826615]
[1741559858883,1.40070147,554.62,554.01,0.36100431]
[1741559859084,8.26576601,554.85,554.02,0.29826615]
[1741559859389,0.31389386,554.51,554.02,0.29826615]
[1741559859688,0.693,554.41,554.02,0.29826615]
[1741559861489,0.693,554.41,554.03,0.29799743]
[1741559861690,0.693,554.41,554.04,0.29799743]
[1741559861890,0.693,554.41,554.02,0.29799743]
[1741559862184,0.693,554.41,554.03,0.29799743]
[1741559862484,0.693,554.41,554.04,0.29799743]
[1741559862691,0.693,554.41,554.05,0.29799743]
[1741559862990,0.693,554.41,554.06,0.29799743]
[1741559863190,0.693,554.41,554.01,0.36100431]
[1741559863386,0.278,554.4,554.02,0.2979776]
[1741559865292,0.278,554.4,554.03,0.29793671]
[1741559865492,0.278,554.4,554.04,0.29793671]
[1741559865794,0.278,554.4,554.05,0.29793671]
[1741559865994,0.278,554.4,554.02,0.29793671]
[1741559867192,0.278,554.4,554.03,0.29793281]
[1741559867387,0.278,554.4,554.02,0.29793281]
[1741559867592,0.278,554.4,554.03,0.29793281]
[1741559867793,0.278,554.4,554.04,0.36098476]
[1741559867988,0.278,554.4,554.05,0.29793281]
[1741559868794,0.278,554.4,553.05,0.31387546]
[1741559868795,0.278,554.4,554.06,0.36097173]
[1741559868994,0.278,554.4,554.06,0.65890221]
[1741559869195,0.278,554.4,554.07,0.29793048]
[1741559869395,0.278,554.4,554.08,0.3609587]
[1741559869694,0.278,554.4,554.09,0.29793048]
[1741559870695,0.278,554.4,554.1,0.36094567]
[1741559870892,0.278,554.4,554.11,0.29791268]
[1741559871393,0.278,554.4,554.12,0.36093264]
[1741559871695,0.278,554.4,554.13,0.29791268]
[1741559872696,0.278,554.4,554.14,0.36091962]
[1741559872897,0.278,554.4,554.15,0.29791268]
[1741559874391,0.278,554.4,554.16,0.29777183]
[1741559874597,0.278,554.4,554.15,0.29777183]
[1741559874799,0.278,554.4,554.16,0.29777183]
[1741559875191,0.278,554.4,554.17,0.29777183]
[1741559875496,0.278,554.4,554.15,0.29777183]
[1741559875694,0.278,554.4,554.16,0.29777183]
[1741559875889,0.278,554.4,554.17,0.29777183]
[1741559876095,0.278,554.4,554.18,0.29777183]
[1741559876295,0.278,554.4,554.19,0.36088706]
[1741559876496,0.278,554.4,554.2,0.29777183]
[1741559877598,0.278,554.4,554.21,0.36087403]
[1741559877793,0.278,554.4,554.22,0.29777183]
[1741559877993,0.278,554.4,554.23,0.36086101]
[1741559878196,0.278,554.4,554.24,0.29777183]
[1741559878397,0.278,554.4,554.25,0.36084799]
[1741559878597,0.278,554.4,554.26,0.29777183]
[1741559878899,0.278,554.4,554.27,0.36083497]
[1741559879096,0.278,554.4,554.28,0.29777183]
[1741559879399,0.278,554.4,554.29,0.36082195]
[1741559879697,0.278,554.4,554.3,0.29777183]
[1741559879893,0.278,554.4,554.31,0.36080893]
[1741559880093,0.278,554.4,554.32,0.29777183]
[1741559880894,0.278,554.4,554.33,0.36079591]
[1741559881095,0.278,554.4,554.34,0.29777183]
[1741559881296,0.278,554.4,554.35,0.36078289]
[1741559881496,0.278,554.4,554.36,0.29777183]
[1741559881695,0.278,554.4,554.37,0.36076988]
[1741559881900,0.278,554.4,554.38,0.29781563]
[1741559882304,0.278,554.4,554.39,0.36075686]
[1741559882499,0.278,554.4,554.39,0.65857249]
[1741559884904,0.278,554.4,554.39,0.36075686]
[1741559885105,0.278,554.4,554.39,0.65866192]
[1741559886606,0.699,554.59,554.39,0.65866192]
[1741559886908,0.699,554.59,554.4,0.29790506]
[1741559888405,0.699,554.59,554.39,0.36075686]
[1741559890707,0.699,554.59,554.4,0.29784249]
[1741559894210,0.699,554.59,554.41,0.36074385]
[1741559901915,0.278,554.72,554.41,0.36074385]
[1741559904216,0.278,554.72,554.42,0.29780929]
[1741559904409,0.278,554.72,554.43,0.36073084]
[1741559904612,0.278,554.72,554.44,0.29780929]
[1741559904814,0.278,554.72,554.45,0.36071782]
[1741559905518,0.278,554.72,554.46,0.2978574]
[1741559905916,0.278,554.72,554.45,0.36071782]
[1741559906118,0.278,554.72,554.46,0.29785422]
[1741559907619,0.278,554.72,554.45,0.36071782]
[1741559908721,0.278,554.72,554.46,0.29784614]
[1741559909616,0.278,554.72,554.45,0.36071782]
[1741559911524,0.278,554.72,554.46,0.29777732]
[1741559911923,0.278,554.72,554.47,0.36070481]
[1741559912120,0.278,554.72,554.48,0.29777732]
[1741559912323,0.278,554.72,554.49,0.3606918]
[1741559912519,0.278,554.72,554.5,0.29777732]
[1741559912723,0.845,554.75,554.51,0.65840866]
[1741559913026,0.845,554.75,554.52,0.65840216]
[1741559913219,0.845,554.75,554.53,0.65839565]
[1741559913423,0.845,554.75,554.54,0.65838915]
[1741559913624,0.845,554.75,554.55,0.29772987]
[1741559913820,0.845,554.75,554.55,0.65838265]
[1741559914021,0.845,554.75,554.56,0.29772987]
[1741559914225,0.845,554.75,554.57,0.36063977]
[1741559914521,0.845,554.75,554.58,0.29772987]
[1741559914726,0.845,554.75,554.59,0.36062676]
[1741559914925,0.845,554.75,554.6,0.29772987]
[1741559915125,0.845,554.75,554.61,0.36061376]
[1741559915325,0.845,554.75,554.62,0.29772987]
[1741559915527,0.845,554.75,554.63,0.36060076]
[1741559915721,0.845,554.75,554.64,0.29772987]
[1741559915926,0.845,554.75,554.64,0.65832412]
[1741559916127,0.845,554.75,554.65,0.29772987]
[1741559919130,0.278,554.96,554.65,0.29772987]
[1741559920931,0.278,554.96,554.66,0.36058125]
[1741559921132,0.278,554.96,554.67,0.29772987]
[1741559921732,0.278,554.96,554.68,0.36056825]
[1741559921931,0.278,554.96,554.69,0.29772987]
[1741559922231,0.278,554.96,554.7,0.29768315]
[1741559922432,0.278,554.96,554.71,0.36054875]
[1741559922632,0.278,554.96,554.72,0.29768315]
[1741559922832,0.278,554.96,554.72,0.6582254]
[1741559923031,0.278,554.96,554.73,0.29768315]
[1741559923732,0.278,554.96,554.73,0.6582189]
[1741559923929,0.278,554.96,554.74,0.29766434]
[1741559925837,0.278,554.96,554.75,0.36052275]
[1741559926037,0.278,554.96,554.76,0.29766434]
[1741559926234,0.26407938,554.96,554.76,0.29766434]
[1741559926636,0.26407938,554.96,554.77,0.36050976]
[1741559926835,0.26407938,554.96,554.78,0.29766434]
[1741559927036,0.26407938,554.96,554.79,0.36049676]
[1741559927234,0.26407938,554.96,554.8,0.29766434]
[1741559927937,0.732,554.99,554.8,0.29766434]
[1741559928139,0.732,554.99,554.81,0.36048376]
[1741559928341,0.732,554.99,554.82,0.29766434]
[1741559928642,0.732,554.99,554.83,0.36047077]
[1741559928843,0.732,554.99,554.84,0.29766434]
[1741559929541,0.732,554.99,554.85,0.36045778]
[1741559929742,0.732,554.99,554.86,0.29766434]
[1741559931143,0.732,554.99,554.85,0.36045778]
[1741559931447,0.732,554.99,554.86,0.29688414]
[1741559932546,0.732,554.99,554.85,0.36045778]
[1741559934555,0.732,554.99,554.86,0.29696061]
[1741559936051,0.732,554.99,554.87,0.36044478]
[1741559936247,0.732,554.99,554.88,0.29696061]
[1741559936451,0.732,554.99,554.89,0.36043179]
[1741559936651,0.732,554.99,554.9,0.29696061]
[1741559937053,0.732,554.99,554.91,0.29688571]
[1741559937247,0.732,554.99,554.89,0.36043179]
[1741559937248,0.732,554.99,554.9,0.29688571]
[1741559937449,0.732,554.99,554.91,0.29688571]
[1741559937651,0.732,554.99,554.92,0.29688571]
[1741559937849,0.732,554.99,554.93,0.29688571]
[1741559938046,0.732,554.99,554.94,0.29688571]
[1741559938360,0.732,554.99,554.95,0.29688571]
[1741559938659,0.732,554.99,554.9,0.29688571]
[1741559938855,0.732,554.99,554.89,0.36043179]
[1741559943257,0.732,554.99,554.9,0.29698228]
[1741559944657,0.732,554.99,554.89,0.36043179]
[1741559946363,0.31361947,555.06,554.89,0.36043179]
[1741559946965,0.31361947,555.06,554.37,1.3329422]
[1741559947166,0.31361947,555.06,554.38,0.65785589]
[1741559947366,0.31361947,555.06,554.39,0.36075686]
[1741559947561,0.31361947,555.06,554.4,0.29709252]
[1741559947866,0.31361947,555.06,554.41,0.36074385]
[1741559948067,0.31361947,555.06,554.42,0.29709252]
[1741559948264,0.31361947,555.06,554.43,0.36073084]
[1741559948667,0.31361947,555.06,554.44,0.29709252]
[1741559948970,0.31361947,555.06,554.45,0.36071782]
[1741559949267,1.39422585,555.23,554.46,0.29709252]
[1741559949467,0.31358555,555.06,554.46,0.29709252]
[1741559949660,0.95,555.05,554.46,0.29709252]
[1741559951070,0.95,555.05,554.45,0.36071782]
[1741559951071,0.95,555.05,554.47,0.29700809]
[1741559951267,0.95,555.05,554.46,0.29700809]
[1741559951572,0.95,555.05,554.47,0.29700809]
[1741559951869,0.95,555.05,554.48,0.6577064]
[1741559952070,0.95,555.05,554.49,0.29700809]
[1741559952870,0.95,555.05,554.5,0.3606853]
[1741559953166,0.95,555.05,554.51,0.29700809]
[1741559953569,0.95,555.05,554.52,0.36067229]
[1741559953765,0.95,555.05,554.53,0.29700809]
[1741559953966,0.95,555.05,554.54,0.36065928]
[1741559954174,0.95,555.05,554.55,0.29700809]
[1741559954375,0.95,555.05,554.56,0.36064627]
[1741559954576,0.95,555.05,554.57,0.29700809]
[1741559954775,0.95,555.05,554.58,0.36063327]
[1741559954977,0.264,555.04,554.59,0.29700809]
[1741559955171,0.264,555.04,554.6,0.36062026]
[1741559955373,0.264,555.04,554.61,0.29700809]
[1741559955679,0.264,555.04,554.62,0.36060726]
[1741559955875,0.264,555.04,554.63,0.29700809]
[1741559956177,0.264,555.04,554.64,0.36059425]
[1741559956376,0.264,555.04,554.65,0.29700809]
[1741559957280,0.264,555.04,554.66,0.36058125]
[1741559957580,0.264,555.04,554.67,0.29700809]
[1741559957778,0.264,555.04,554.67,0.65758284]
[1741559957980,0.264,555.04,554.68,0.29700809]
[1741559958372,0.264,555.04,554.69,0.29764123]
[1741559958572,0.264,555.04,554.68,0.29764123]
[1741559958777,0.264,555.04,554.67,0.36057475]
[1741559958778,0.264,555.04,554.69,0.29764123]
[1741559959179,0.264,555.04,554.7,0.29764123]
[1741559959374,0.264,555.04,554.68,0.29764123]
[1741559960478,0.264,555.04,554.69,0.36056175]
[1741559960677,0.264,555.04,554.7,0.29764123]
[1741559962975,0.264,555.04,554.71,0.36054875]
[1741559963180,0.264,555.04,554.72,0.29764123]
[1741559963380,0.264,555.04,554.73,0.36053575]
[1741559963582,0.264,555.04,554.74,0.29764123]
[1741559963777,0.264,555.04,554.75,0.36052275]
[1741559964179,0.264,555.04,554.76,0.29764123]
[1741559964480,0.264,555.04,554.77,0.36050976]
[1741559964682,0.264,555.04,554.78,0.29764123]
[1741559964882,0.264,555.04,554.79,0.36049676]
[1741559965181,0.264,555.04,554.8,0.29764123]
[1741559965379,0.264,555.04,554.8,0.65813149]
[1741559965576,0.264,555.04,554.81,0.29764123]
[1741559967483,0.264,555.04,554.82,0.36047727]
[1741559967682,0.264,555.04,554.83,0.29764123]
[1741559967882,0.264,555.04,554.84,0.36046427]
[1741559968078,0.264,555.04,554.85,0.29764123]
[1741559971886,8.04147188,555.44,554.85,0.29764123]
[1741559972183,8.04147188,555.43,554.85,0.29764123]
[1741559972389,8.04147188,555.42,554.85,0.29764123]
[1741559972584,7.50128169,555.41,554.85,0.29764123]
[1741559972778,7.50128169,555.4,554.85,0.29764123]
[1741559972982,7.50128169,555.39,554.85,0.29764123]
[1741559973183,7.50128169,555.38,554.85,0.29764123]
[1741559973487,11.1343008,555.37,554.85,0.29764123]
[1741559973679,7.50128169,555.36,554.85,0.29764123]
[1741559973985,4.62045603,555.35,554.85,0.29764123]
[1741559974187,2.88510834,555.34,554.85,0.29764123]
[1741559974386,2.88510834,555.33,554.85,0.29764123]
[1741559974680,6.51812745,555.32,554.85,0.29764123]
[1741559974885,2.88510834,555.31,554.85,0.29764123]
[1741559975185,4.28448991,555.3,554.85,0.29764123]
[1741559975386,2.88510834,555.29,554.85,0.29764123]
[1741559975585,1.39938157,555.28,554.85,0.29764123]
[1741559976086,1.39938157,555.27,554.85,0.29764123]
[1741559976280,1.80084123,555.26,554.85,0.29764123]
[1741559976483,0.263,555.32,554.84,0.36046427]
[1741559976484,4.28647058,555.25,554.84,0.36046427]
[1741559976677,2.88708901,555.24,554.84,0.36046427]
[1741559976882,1.08617273,555.23,554.84,0.36046427]
[1741559977081,3.63897626,555.24,554.85,0.29761031]
[1741559977486,1.39938157,555.23,554.85,0.29761031]
[1741559978188,2.24014131,555.31,554.85,0.29761031]
[1741559978385,0.31350786,555.22,554.85,0.29761031]
[1741559978590,0.263,555.32,554.85,0.29761031]
[1741559978784,2.8872482,555.31,554.85,0.29761031]
[1741559978983,2.8872482,555.3,554.85,0.29761031]
[1741559979181,0.263,555.32,554.85,0.29761031]
[1741559979380,1.40036921,555.29,554.85,0.29761031]
[1741559979686,1.71384177,555.29,554.85,0.29761031]
[1741559979882,0.31347256,555.29,554.85,0.29761031]
[1741559980187,0.263,555.32,554.85,0.29761031]
[1741559980381,0.263,555.32,554.84,0.36046427]
[1741559980588,0.263,555.32,554.86,0.29753475]
[1741559980781,0.263,555.32,554.87,0.29753475]
[1741559980984,0.31349657,555.31,554.85,0.29753475]
[1741559981185,0.31349657,555.31,554.86,0.29753475]
[1741559981380,0.31349657,555.31,554.85,0.29753475]
[1741559981585,0.31349657,555.31,554.86,0.29753475]
[1741559981786,0.31349657,555.31,554.84,0.36046427]
[1741559981787,0.31349657,555.31,554.85,0.29753475]
[1741559981982,0.31349657,555.31,554.86,0.29753475]
[1741559982185,0.31349657,555.31,554.85,0.29753475]
[1741559982386,0.31349657,555.31,554.86,0.29753475]
[1741559982583,0.31349657,555.31,554.85,0.29753475]
[1741559983089,1.40051737,555.3,554.85,0.29753475]
[1741559983391,1.71397864,555.3,554.85,0.29753475]
[1741559983787,0.31346127,555.3,554.85,0.29753475]
[1741559984189,0.31346127,555.3,554.86,0.29758071]
[1741559984389,0.31346127,555.3,554.87,0.29758071]
[1741559984691,0.31346127,555.3,554.88,0.29758071]
[1741559984890,0.31346127,555.3,554.85,0.29758071]
[1741559985688,1.40052654,555.29,554.85,0.29758071]
[1741559985884,1.40052654,555.29,554.84,0.36046427]
[1741559986086,1.40052654,555.29,554.85,0.29757668]
[1741559986389,0.263,555.32,554.85,0.29757668]
[1741559986894,0.263,555.32,554.86,0.29757662]
[1741559987091,0.263,555.32,554.85,0.29757662]
[1741559987492,0.31345986,555.31,554.85,0.29757662]
[1741559988492,1.40060773,555.3,554.85,0.29757662]
[1741559988888,1.40060773,555.29,554.85,0.29757662]
[1741559989390,2.88744148,555.28,554.85,0.29757662]
[1741559989595,1.07007081,555.52,554.85,0.29757662]
[1741559989796,8.04748578,555.51,554.85,0.29757662]
[1741559990094,8.04748578,555.5,554.85,0.29757662]
[1741559990293,3.64108409,555.51,554.85,0.29757662]
[1741559990493,1.31879165,556.16,554.85,0.29757662]
[1741559990494,12.00192443,555.5,554.85,0.29757662]
[1741559990693,8.04737907,555.49,554.85,0.29757662]
[1741559990902,8.04737907,555.48,554.85,0.29757662]
[1741559991089,7.50717581,555.47,554.85,0.29757662]
[1741559991390,11.1482599,555.46,554.84,0.36046427]
[1741559991594,7.50717581,555.45,554.84,0.36046427]
[1741559991795,7.50717581,555.44,554.84,0.36046427]
[1741559991996,7.50717581,555.43,554.84,0.36046427]
[1741559992194,7.50717581,555.42,554.84,0.36046427]
[1741559992397,7.50819441,555.41,554.84,0.36046427]
[1741559992598,11.1492785,555.4,554.84,0.36046427]
[1741559992796,7.50819441,555.39,554.84,0.36046427]
[1741559992990,4.62715716,555.38,554.84,0.36046427]
[1741559993195,2.88776708,555.37,554.84,0.36046427]
[1741559993498,2.88776708,555.36,554.84,0.36046427]
[1741559993697,6.52885117,555.35,554.84,0.36046427]
[1741559993895,2.88776708,555.34,554.84,0.36046427]
[1741559994091,4.28809581,555.33,554.84,0.36046427]
[1741559994299,1.40041696,555.33,554.84,0.36046427]
[1741559994494,2.88786683,555.32,554.84,0.36046427]
[1741559994697,1.40041696,555.31,554.84,0.36046427]
[1741559995299,1.40041696,555.3,554.84,0.36046427]
[1741559995797,1.40041696,555.29,554.84,0.36046427]
[1741559996502,1.71394318,555.28,554.84,0.36046427]
[1741559997100,0.31352622,555.28,554.85,0.29757059]
[1741559997302,0.31352622,555.28,554.84,0.36046427]
[1741559997497,1.4015126,555.27,554.84,0.36046427]
[1741559997701,1.4015126,555.27,554.85,0.29751665]
[1741559997902,0.263,555.42,554.86,0.36045128]
[1741559998103,0.263,555.42,554.87,0.29751665]
[1741559998697,1.40151111,555.41,554.88,0.36043829]
[1741559998896,1.71492721,555.41,554.89,0.29751665]
[1741559999098,1.71492721,555.41,554.9,0.3604253]
[1741559999303,1.71492721,555.41,554.91,0.29751665]
[1741559999502,1.40151111,555.4,554.92,0.36041231]
[1741559999699,1.40151111,555.4,554.93,0.29751665]
[1741560000205,0.3134161,555.41,554.93,0.29751665]
[1741560001003,0.3134161,555.41,554.94,0.36039932]
[1741560001201,0.3134161,555.41,554.95,0.29751665]
[1741560001401,0.3134161,555.41,554.96,0.36038633]
[1741560001699,0.3134161,555.41,554.97,0.29751665]
[1741560002399,0.3134161,555.41,554.98,0.36037334]
[1741560002704,0.3134161,555.41,554.99,0.29751665]
[1741560002904,0.3134161,555.41,555.0,0.36036036]
[1741560003105,0.3134161,555.41,555.01,0.29751665]
[1741560003302,0.3134161,555.41,555.02,0.36034737]
[1741560003702,0.3134161,555.41,555.03,0.29751665]
[1741560003897,0.3134161,555.41,555.04,0.36033439]
[1741560004102,0.263,555.42,555.04,0.65780773]
[1741560004298,0.263,555.42,555.05,0.29747334]
[1741560005204,0.263,555.42,555.05,0.65780123]
[1741560005406,0.263,555.42,555.06,0.29747334]
[1741560007301,0.738,555.41,555.06,0.29747334]
[1741560007607,0.738,555.41,555.06,0.65779474]
[1741560007807,0.738,555.41,555.07,0.29747334]
[1741560008708,0.738,555.41,555.08,0.36030842]
[1741560008907,0.738,555.41,555.09,0.29747334]
[1741560009102,0.738,555.41,555.1,0.36029544]
[1741560009303,0.738,555.41,555.11,0.29747334]
[1741560009509,0.738,555.41,555.12,0.36028246]
[1741560009807,0.738,555.41,555.13,0.29747334]
[1741560010104,0.738,555.41,555.14,0.36026948]
[1741560010305,0.738,555.41,555.15,0.29747334]
[1741560010608,0.738,555.41,555.14,0.36026948]
[1741560011810,0.738,555.41,555.15,0.29741171]
[1741560017405,0.738,555.41,555.16,0.3602565]
[1741560017606,0.738,555.41,555.17,0.29741171]
[1741560018814,0.738,555.41,555.18,0.36024352]
[1741560019112,0.738,555.41,555.19,0.29741171]
[1741560020414,0.738,555.41,555.2,0.65752662]
[1741560020714,0.738,555.41,555.21,0.29729608]
[1741560020913,0.738,555.41,555.21,0.65752013]
[1741560021114,0.738,555.41,555.22,0.29729608]
[1741560021414,0.738,555.41,555.22,0.65751365]
[1741560021613,0.738,555.41,555.23,0.29729608]
[1741560022113,0.738,555.41,555.22,0.36021757]
[1741560022315,0.263,555.47,555.22,0.36021757]
[1741560024711,0.263,555.47,555.23,0.29738107]
[1741560025623,0.263,555.47,555.23,0.65759215]
[1741560025815,0.263,555.47,555.24,0.29738107]
[1741560026323,0.263,555.47,555.23,0.36021108]
[1741560030926,0.263,555.47,555.24,0.29735407]
[1741560031127,0.263,555.47,555.23,0.36021108]
[1741560031329,0.263,555.47,555.24,0.29735341]
[1741560032524,0.931,555.53,555.24,0.29735341]
[1741560036128,0.931,555.53,555.25,0.3601981]
[1741560036334,0.931,555.53,555.26,0.29735341]
[1741560036533,0.931,555.53,555.27,0.36018513]
[1741560036932,0.931,555.53,555.28,0.29735341]
[1741560037133,0.931,555.53,555.29,0.36017216]
[1741560037337,0.931,555.53,555.3,0.29735341]
[1741560037529,0.931,555.53,555.31,0.36015919]
[1741560037730,0.931,555.53,555.32,0.29735341]
[1741560037930,0.931,555.53,555.33,0.36014621]
[1741560038131,0.931,555.53,555.34,0.29735341]
[1741560038529,0.931,555.53,555.35,0.29726174]
[1741560038729,0.931,555.53,555.36,0.36012676]
[1741560038934,0.931,555.53,555.37,0.29726174]
[1741560040431,0.931,555.53,555.37,0.65738202]
[1741560040634,0.931,555.53,555.38,0.29726174]
[1741560041537,0.931,555.53,555.37,0.36012028]
[1741560042334,0.931,555.53,555.38,0.29728032]
[1741560043138,0.931,555.53,555.37,0.36012028]
[1741560043335,0.931,555.53,555.38,0.29727764]
[1741560043532,0.931,555.53,555.37,0.36012028]
[1741560055551,0.263,555.57,555.37,0.36012028]
[1741560057147,0.263,555.57,555.38,0.29735974]
[1741560057347,0.263,555.57,555.37,0.36012028]
[1741560057651,0.263,555.57,555.38,0.29736132]
[1741560058051,0.263,555.57,555.37,0.36012028]
[1741560060752,0.31328067,555.62,555.37,0.36012028]
[1741560061149,0.927,555.67,555.37,0.36012028]
[1741560070261,3.20073288,555.66,555.37,0.36012028]
[1741560070462,2.88756601,555.65,555.37,0.36012028]
[1741560070662,2.88756601,555.64,555.37,0.36012028]
[1741560070866,2.88756601,555.63,555.37,0.36012028]
[1741560071066,2.88756601,555.62,555.37,0.36012028]
[1741560071266,0.3133258,555.66,555.37,0.36012028]
[1741560071267,1.40212092,555.63,555.37,0.36012028]
[1741560071466,2.88774135,555.62,555.37,0.36012028]
[1741560071667,1.40212092,555.63,555.37,0.36012028]
[1741560072066,1.40212092,555.62,555.37,0.36012028]
[1741560072964,1.40212092,555.61,555.37,0.36012028]
[1741560073169,2.88808916,555.6,555.37,0.36012028]
[1741560073469,2.88820522,555.59,554.85,1.3329422]